bitfinex/quotes_ETHUSD_20240707
["timestamp","ask_amount","ask_price","bid_price","bid_amount"]
[1720388816285,7.54248,2954.9,2953.8,0.55]
[1720388816478,7.54248,2954.9,2953.7,0.31941]
[1720388820691,7.54248,2954.9,2954.1,0.963]
[1720388824479,6.768,2954.9,2954.5,0.963]
[1720388824908,6.768,2954.9,2954.7,0.963]
[1720388825069,9.8534,2955.2,2954.7,0.963]
[1720388826680,9.8534,2955.2,2954.0,6.8102]
[1720388826681,9.8534,2955.2,2954.1,2.309]
[1720388827017,9.8534,2955.2,2954.2,0.55]
[1720388827174,10.0214,2955.2,2954.1,0.55]
[1720388827365,10.0214,2955.2,2954.2,0.96692]
[1720388827570,10.0214,2955.2,2954.3,8.0388]
[1720388828479,10.0214,2955.2,2954.3,0.55]
[1720388828682,10.0214,2955.2,2954.2,0.55]
[1720388828881,10.0214,2955.2,2954.1,0.55]
[1720388831731,10.0214,2955.2,2954.1,0.8891]
[1720388832031,10.0214,2955.2,2954.2,0.31981]
[1720388832200,10.0214,2955.2,2954.3,0.55]
[1720388835952,10.0214,2955.2,2954.2,0.3391]
[1720388836136,10.0214,2955.2,2954.3,0.55]
[1720388836342,7.0214,2955.2,2954.3,0.55]
[1720388837197,7.0214,2955.2,2954.0,3.0]
[1720388837198,7.0214,2955.2,2954.2,0.8891]
[1720388839132,0.168,2955.2,2954.4,7.4879]
[1720388839333,0.168,2955.2,2954.5,0.55]
[1720388839781,0.168,2955.2,2954.6,0.06760489]
[1720388840061,0.168,2955.2,2954.7,0.55]
[1720388840263,0.168,2955.2,2954.8,0.06760031]
[1720388840560,0.168,2955.2,2954.9,0.55]
[1720388841059,0.168,2955.2,2955.0,0.06759573]
[1720388841262,0.168,2955.2,2955.1,0.55]
[1720388841870,0.168,2955.2,2955.1,0.76515]
[1720388842071,0.168,2955.2,2955.1,1.31515]
[1720388843971,0.168,2955.2,2955.1,1.37797113]
[1720388844548,0.168,2955.2,2955.1,1.31515]
[1720388845175,0.168,2955.2,2955.1,1.65425]
[1720388845364,0.168,2955.2,2955.1,1.72184751]
[1720388848659,0.168,2955.2,2955.1,2.68384751]
[1720388848871,0.168,2955.2,2955.1,5.68384751]
[1720388853317,0.52228621,2955.2,2955.1,5.68384751]
[1720388854169,0.168,2955.2,2955.1,5.68384751]
[1720388854882,0.168,2955.2,2955.1,12.43644751]
[1720388855482,0.35427997,2955.6,2955.1,14.80522751]
[1720388855686,0.35427997,2955.6,2955.5,0.962]
[1720388855993,0.35427997,2955.6,2955.5,1.57959151]
[1720388856798,6.8563,2956.5,2955.5,1.57959151]
[1720388856994,6.8563,2956.5,2956.2,0.962]
[1720388857173,0.35429857,2956.4,2956.2,0.962]
[1720388857576,6.8563,2956.5,2956.2,0.962]
[1720388857902,6.8563,2956.5,2956.4,0.962]
[1720388858279,0.962,2957.4,2956.4,0.962]
[1720388858280,6.8256,2957.3,2956.4,0.962]
[1720388858610,6.8256,2957.3,2955.8,3.06758464]
[1720388858611,0.962,2957.2,2956.2,0.962]
[1720388858778,6.8256,2957.1,2956.2,0.962]
[1720388859524,6.8256,2957.1,2956.4,0.962]
[1720388861376,6.8256,2957.1,2956.6,0.962]
[1720388862016,0.35430512,2957.2,2956.8,0.962]
[1720388862199,0.35430512,2957.2,2956.2,0.06761884]
[1720388862399,0.35430512,2957.2,2956.6,0.962]
[1720388862721,0.35430512,2957.2,2956.8,0.962]
[1720388864727,0.35430512,2957.2,2956.1,0.3391]
[1720388864929,0.35430512,2957.2,2956.2,1.59867349]
[1720388865123,0.35430512,2957.2,2956.8,0.962]
[1720388867228,0.35430512,2957.2,2956.2,1.59867349]
[1720388867429,0.35430512,2957.2,2956.7,0.962]
[1720388867634,0.35430512,2957.2,2956.8,0.55]
[1720388867928,7.2064,2957.5,2956.9,0.962]
[1720388868496,7.2064,2957.5,2956.8,1.512]
[1720388868719,7.92704,2957.5,2956.8,1.512]
[1720388875755,8.28116478,2957.5,2956.8,1.512]
[1720388880101,8.28116478,2957.5,2956.9,0.962]
[1720388880460,8.28116478,2957.5,2957.0,0.55]
[1720388880461,7.56052478,2957.5,2957.0,0.55]
[1720388880697,7.56052478,2957.5,2957.1,0.962]
[1720388881759,0.35412478,2957.5,2957.1,0.962]
[1720388883586,7.1158,2957.8,2957.1,0.962]
[1720388883989,7.1158,2957.8,2957.2,0.55]
[1720388884716,3.0,2958.0,2957.2,0.55]
[1720388884924,6.9636,2958.1,2957.3,0.962]
[1720388885082,0.3540691,2958.0,2957.4,0.55]
[1720388885919,0.3540691,2958.0,2957.7,0.962]
[1720388886115,0.3540691,2958.0,2957.8,0.55]
[1720388886924,0.3540691,2958.0,2957.8,1.512]
[1720388887514,0.3540691,2958.0,2957.9,0.0649026]
[1720388887822,0.3540691,2958.0,2957.9,0.55]
[1720388888008,0.3540691,2958.0,2957.9,0.7562]
[1720388889017,0.3540691,2958.0,2957.9,1.7182]
[1720388889219,7.2534,2958.6,2957.9,1.7182]
[1720388889520,0.35400575,2958.3,2958.0,0.55]
[1720388891135,0.35400575,2958.3,2958.1,0.962]
[1720388891419,0.35400575,2958.3,2958.2,0.962]
[1720388891619,7.2534,2958.9,2958.2,1.512]
[1720388891799,7.2534,2958.9,2958.2,0.962]
[1720388891999,0.35407404,2958.7,2958.2,0.962]
[1720388892301,0.35407404,2958.7,2958.0,0.55]
[1720388892504,3.32,2959.1,2958.3,0.962]
[1720388892923,0.35409442,2958.8,2958.7,0.962]
[1720388893143,7.2534,2959.4,2958.7,0.962]
[1720388895896,7.2534,2959.4,2958.9,0.962]
[1720388897634,7.4289,2959.7,2958.9,0.962]
[1720388897939,3.0,2959.6,2959.0,0.8016]
[1720388902150,3.0,2959.6,2958.9,0.962]
[1720388902914,3.962,2959.6,2958.6,0.962]
[1720388903357,3.962,2959.6,2958.1,7.2486]
[1720388903508,6.8208,2959.5,2958.6,0.962]
[1720388903708,7.7828,2959.3,2957.8,7.4146]
[1720388903932,7.7828,2959.3,2958.2,0.962]
[1720388904162,6.9934,2959.1,2958.2,0.962]
[1720388904451,3.0,2959.0,2958.2,0.962]
[1720388905926,3.0,2959.0,2958.1,0.962]
[1720388906134,4.09554,2959.0,2957.8,7.4146]
[1720388906462,4.09554,2959.0,2958.1,0.962]
[1720388907059,3.0,2959.0,2958.1,0.962]
[1720388907437,3.0,2959.0,2958.3,0.962]
[1720388908752,3.0,2959.0,2958.1,0.962]
[1720388909118,3.0,2959.0,2958.3,0.962]
[1720388910359,6.891,2958.9,2958.3,0.962]
[1720388916967,7.8801,2958.9,2958.3,0.962]
[1720388917667,6.891,2958.9,2958.3,0.962]
[1720388925472,1.09820438,2958.8,2958.3,0.962]
[1720388925642,1.71435059,2959.1,2958.5,0.962]
[1720388925849,1.09822322,2959.0,2958.5,0.962]
[1720388926044,9.09375059,2959.2,2958.5,0.962]
[1720388926348,1.09847056,2959.1,2958.5,0.962]
[1720388926546,5.08435059,2959.3,2958.5,0.962]
[1720388926547,3.0,2959.2,2958.5,0.962]
[1720388926761,1.09847823,2959.1,2958.3,0.962]
[1720388926962,3.72416194,2959.3,2958.4,1.37745]
[1720388927270,1.09847706,2959.2,2958.4,1.37745]
[1720388927469,1.09847706,2959.2,2957.8,0.166]
[1720388927470,8.0546,2959.1,2957.8,0.166]
[1720388927672,1.71435059,2958.9,2958.2,0.962]
[1720388927831,1.09847706,2958.8,2958.3,0.55]
[1720388928445,4.71561734,2959.0,2958.3,0.55]
[1720388928696,1.09821836,2958.9,2958.3,0.55]
[1720388929362,1.71614814,2959.0,2958.3,0.55]
[1720388929564,7.0926,2959.1,2958.3,0.55]
[1720388929565,1.09818686,2958.9,2958.3,0.55]
[1720388929741,1.71614814,2959.0,2958.4,0.962]
[1720388929943,1.09823472,2958.9,2958.4,0.962]
[1720388931235,2.81438286,2958.9,2958.3,0.55]
[1720388931437,1.09823472,2958.8,2958.3,0.962]
[1720388931637,1.09823472,2958.7,2958.4,0.55]
[1720388931833,1.71765829,2958.9,2958.4,0.7562]
[1720388932082,1.09785451,2958.8,2958.4,0.7562]
[1720388933381,2.8155128,2958.8,2958.4,0.7562]
[1720388933537,9.15378995,2959.1,2958.4,0.7562]
[1720388933538,1.09785451,2958.7,2958.4,0.7562]
[1720388933739,1.71765829,2958.9,2958.4,0.7562]
[1720388933960,1.09774389,2958.8,2958.4,0.7562]
[1720388934161,1.09774389,2958.8,2958.5,0.17182]
[1720388934566,1.09774389,2958.8,2958.4,0.55]
[1720388934781,1.09774389,2958.8,2958.3,0.962]
[1720388934980,1.09774389,2958.7,2958.4,0.55]
[1720388935150,1.71781395,2958.9,2958.4,0.55]
[1720388935354,1.09773596,2958.8,2958.4,0.55]
[1720388937704,2.81554991,2958.8,2958.4,0.55]
[1720388937909,1.09773596,2958.7,2958.4,0.55]
[1720388938266,1.09773596,2958.6,2958.4,0.55]
[1720388938466,1.71810664,2958.8,2958.4,0.55]
[1720388938680,1.09771472,2958.7,2958.4,0.55]
[1720388940388,2.81582136,2958.7,2958.4,0.55]
[1720388940586,1.09771472,2958.6,2958.4,0.55]
[1720388940804,1.71810664,2958.8,2958.4,0.55]
[1720388941008,1.09768404,2958.7,2958.4,0.55]
[1720388942904,1.09768404,2958.7,2958.2,0.55]
[1720388943569,2.81565335,2958.7,2958.2,0.55]
[1720388943773,1.09768404,2958.6,2958.2,0.55]
[1720388946294,1.09768404,2958.6,2957.9,7.051]
[1720388946295,2.81574101,2958.6,2957.9,7.051]
[1720388946613,1.09768404,2958.5,2958.0,0.55]
[1720388946915,2.81574101,2958.5,2958.0,1.512]
[1720388947121,1.09768404,2958.4,2958.0,1.512]
[1720388947264,2.06166837,2958.8,2958.0,1.512]
[1720388947265,1.71972348,2958.5,2958.0,1.512]
[1720388947468,1.0972901,2958.4,2958.0,1.512]
[1720388949279,2.81771342,2958.4,2958.0,0.55]
[1720388949505,1.0972901,2958.3,2958.0,1.512]
[1720388949930,1.0972901,2958.3,2958.0,0.55]
[1720388950603,1.0972901,2958.2,2958.0,0.55]
[1720388950793,1.72072039,2958.4,2958.0,0.55]
[1720388951021,1.09725439,2958.3,2958.0,0.55]
[1720388952604,2.81797478,2958.3,2958.0,0.55]
[1720388952909,1.09725439,2958.2,2958.0,0.55]
[1720388953112,1.09725439,2958.1,2958.0,0.55]
[1720388953542,1.09725439,2958.2,2958.0,0.55]
[1720388954128,1.09725439,2958.2,2957.8,0.166]
[1720388954392,2.81782077,2958.2,2957.8,0.166]
[1720388954606,1.09725439,2958.1,2957.8,0.166]
[1720388955330,1.17177223,2958.0,2957.8,0.166]
[1720388955542,1.09725439,2957.9,2957.8,0.166]
[1720388955744,1.09725439,2958.0,2957.8,0.166]
[1720388955897,2.2690412,2957.9,2957.8,0.166]
[1720388956407,1.09680511,2957.9,2957.8,0.166]
[1720388956720,1.09680511,2958.0,2957.8,0.166]
[1720388956895,1.09680511,2957.9,2957.8,0.166]
[1720388958030,1.09680511,2958.0,2957.8,0.166]
[1720388958341,1.17178829,2957.9,2957.8,0.166]
[1720388958510,2.26860364,2957.9,2957.8,0.166]
[1720388959315,1.09680511,2957.9,2957.8,0.166]
[1720388960026,1.17180842,2957.9,2957.8,0.166]
[1720388960196,1.09680511,2957.9,2957.8,0.166]
[1720388960393,1.17181359,2957.9,2957.8,0.166]
[1720388960648,2.26862788,2957.9,2957.8,0.166]
[1720388961001,1.09680511,2957.9,2957.8,0.166]
[1720388961313,2.26863465,2957.9,2957.8,0.166]
[1720388961532,3.98692323,2957.9,2957.8,0.166]
[1720388961731,2.26863465,2957.9,2957.8,0.166]
[1720388961898,3.98692323,2957.9,2957.8,0.166]
[1720388962433,2.26863465,2957.9,2957.8,0.166]
[1720388963432,3.98692323,2957.9,2957.8,0.166]
[1720388963633,3.98554515,2957.9,2957.8,0.166]
[1720388964397,3.98485544,2957.9,2957.8,0.166]
[1720388966349,2.26798355,2957.9,2957.8,0.166]
[1720388966513,3.98485544,2957.9,2957.8,0.166]
[1720388966713,2.26798355,2957.9,2957.8,0.166]
[1720388967056,3.98398784,2957.9,2957.8,0.166]
[1720388967366,8.3384154,2957.9,2957.8,0.166]
[1720388967526,11.22659041,2957.9,2957.8,0.166]
[1720388967712,11.2263057,2957.9,2957.8,0.166]
[1720388968253,11.22618591,2957.9,2957.8,0.166]
[1720388968614,9.51036688,2957.9,2957.8,0.166]
[1720388969042,11.22619177,2957.9,2957.8,0.166]
[1720388969640,9.51036688,2957.9,2957.8,0.166]
[1720388969996,11.22619177,2957.9,2957.8,0.166]
[1720388970155,8.3384154,2957.9,2957.8,0.166]
[1720388970455,11.2253038,2957.9,2957.8,0.166]
[1720388970651,9.51037455,2957.9,2957.8,0.166]
[1720388971010,10.49210493,2957.9,2957.8,0.166]
[1720388971213,15.20702705,2957.9,2957.8,0.166]
[1720388971439,13.49210493,2957.9,2957.8,0.166]
[1720388973246,12.36957455,2957.9,2957.8,0.166]
[1720388973550,11.1976154,2957.9,2957.8,0.166]
[1720388973788,12.3696686,2957.9,2957.8,0.166]
[1720388975276,5.2681686,2957.9,2957.8,0.166]
[1720388976857,5.26817844,2957.9,2957.8,0.166]
[1720388977064,6.23017844,2957.9,2957.8,0.166]
[1720388977253,6.23017783,2957.9,2957.8,0.166]
[1720388978041,5.26817783,2957.9,2957.8,0.166]
[1720388978242,6.98053595,2957.9,2957.8,0.166]
[1720388978874,6.97988628,2957.9,2957.8,0.166]
[1720388979438,5.26752816,2957.9,2957.8,0.166]
[1720388979637,6.97988628,2957.9,2957.8,0.166]
[1720388980105,6.97974479,2957.9,2957.8,0.166]
[1720388980403,6.97974326,2957.9,2957.8,0.166]
[1720388982307,8.49931759,2957.9,2957.8,0.166]
[1720388982517,7.74908007,2957.9,2957.8,0.166]
[1720388983303,6.57704006,2957.9,2957.8,0.166]
[1720388983486,7.74918981,2957.9,2957.8,0.166]
[1720388983661,7.1278,2957.8,2956.7,7.362]
[1720388983861,16.08688692,2957.8,2956.7,7.362]
[1720388984605,19.65988692,2957.8,2956.7,7.362]
[1720388986593,19.66008558,2957.8,2956.7,7.362]
[1720388986845,19.66008558,2957.8,2957.7,998.03190001]
[1720388987019,18.48782026,2957.8,2957.7,998.03190001]
[1720388987219,17.32220002,2957.8,2957.7,997.16463074]
[1720388987544,18.14047541,2957.8,2957.7,997.16463074]
[1720388987726,18.14065743,2957.8,2957.7,997.16463074]
[1720388987933,16.08706538,2957.8,2957.7,997.16463074]
[1720388988311,14.09626674,2957.8,2957.7,997.16463074]
[1720388988515,16.08716256,2957.8,2957.7,996.36113187]
[1720388988712,18.1413403,2957.8,2957.7,996.36113187]
[1720388988912,16.08716256,2957.8,2957.7,996.36113187]
[1720388989343,8.95936256,2957.8,2957.7,996.36113187]
[1720388989644,9.10270634,2957.8,2957.7,996.36113187]
[1720388989955,5.26770533,2957.8,2957.7,996.36113187]
[1720388990147,3.73424455,2957.9,2957.7,996.36113187]
[1720388990443,1.17208725,2957.8,2957.7,1003.20713187]
[1720388991101,3.33,2958.0,2957.7,1003.20713187]
[1720388991347,3.33,2958.0,2957.8,3.39800877]
[1720388992855,3.33,2958.0,2957.9,7.117]
[1720388993175,4.50175952,2958.0,2957.9,7.117]
[1720388993388,3.33,2958.0,2957.9,7.117]
[1720388993542,4.50175814,2958.0,2957.9,7.117]
[1720388993749,3.33,2958.0,2957.9,8.29878147]
[1720389000485,3.38,2958.2,2957.9,8.29878147]
[1720389000648,1.71707078,2958.4,2957.9,8.29878147]
[1720389000844,2.26989237,2958.3,2957.9,7.117]
[1720389001050,2.26989237,2958.2,2957.9,7.117]
[1720389001250,1.71707078,2958.4,2957.9,7.117]
[1720389001474,2.26990112,2958.3,2957.9,7.117]
[1720389001688,3.0,2958.4,2957.9,7.117]
[1720389001988,2.27008338,2958.3,2957.9,7.117]
[1720389002191,3.0,2958.4,2957.9,7.117]
[1720389002495,2.27005556,2958.3,2957.9,7.117]
[1720389002694,3.0,2958.4,2957.9,7.117]
[1720389002850,1.71745976,2958.5,2957.9,7.117]
[1720389002851,2.26998528,2958.3,2957.9,7.117]
[1720389003052,4.71745976,2958.4,2957.9,7.117]
[1720389003282,2.26994528,2958.3,2957.9,7.117]
[1720389003446,3.0,2958.4,2957.9,7.117]
[1720389003647,1.09806239,2958.3,2957.9,7.117]
[1720389003849,3.0,2958.4,2957.9,7.117]
[1720389004047,1.09810239,2958.3,2957.9,7.117]
[1720389004269,3.0,2958.4,2957.9,7.117]
[1720389004476,1.09813764,2958.3,2957.9,7.117]
[1720389004674,3.0,2958.4,2957.9,7.117]
[1720389004874,1.09819831,2958.3,2957.9,7.117]
[1720389005087,4.71745976,2958.5,2957.9,7.117]
[1720389005290,2.26994088,2958.4,2957.9,7.117]
[1720389005476,1.09821171,2958.3,2957.9,7.117]
[1720389006070,1.71710769,2958.5,2957.9,7.117]
[1720389006275,2.26993767,2958.4,2957.9,7.117]
[1720389006476,1.09820423,2958.3,2957.9,7.117]
[1720389006667,3.0,2958.4,2957.9,7.117]
[1720389006869,1.09822717,2958.3,2957.9,7.117]
[1720389007052,3.0,2958.4,2957.9,7.117]
[1720389007256,1.09823107,2958.3,2957.9,7.117]
[1720389007604,3.0,2958.4,2957.9,7.117]
[1720389007890,1.09820829,2958.3,2957.9,7.117]
[1720389008100,3.0,2958.4,2957.9,7.117]
[1720389008257,1.09817167,2958.3,2957.9,7.117]
[1720389009987,1.67967821,2958.3,2957.9,7.117]
[1720389012290,1.09817167,2958.3,2957.9,7.117]
[1720389012871,1.71662104,2958.4,2957.7,996.36113187]
[1720389013073,2.26981792,2958.3,2957.7,996.36113187]
[1720389013382,1.71662104,2958.4,2957.7,996.36113187]
[1720389013711,2.74149311,2958.3,2957.7,996.36113187]
[1720389013911,0.4716621,2958.3,2957.7,996.36113187]
[1720389014114,1.56968477,2958.3,2957.7,996.36113187]
[1720389014403,1.17178343,2958.2,2957.7,996.36113187]
[1720389014616,0.4716621,2958.3,2957.7,996.36113187]
[1720389014797,1.17178389,2958.2,2957.7,996.36113187]
[1720389015001,0.4716621,2958.3,2957.7,996.36113187]
[1720389015245,1.17178343,2958.2,2957.7,996.36113187]
[1720389015402,0.4716621,2958.3,2957.7,996.36113187]
[1720389015601,1.17178402,2958.2,2957.7,996.36113187]
[1720389015848,0.4716621,2958.3,2957.7,996.36113187]
[1720389016148,1.1717859,2958.2,2957.8,7.0094]
[1720389016503,1.71640383,2958.3,2957.8,7.0094]
[1720389016707,0.962,2958.4,2957.8,7.0094]
[1720389016708,1.17184543,2958.2,2957.8,7.0094]
[1720389016907,1.17184543,2958.1,2957.8,7.0094]
[1720389017219,2.67840383,2958.4,2957.8,7.0094]
[1720389017404,2.2699226,2958.3,2957.8,7.0094]
[1720389017604,1.17183168,2958.2,2957.8,7.0094]
[1720389017944,1.17183168,2958.1,2957.8,7.0094]
[1720389018147,1.17183168,2958.0,2957.8,7.0094]
[1720389018519,0.962,2958.4,2957.8,7.0094]
[1720389018715,1.17181884,2957.9,2957.8,10.40740877]
[1720389018939,1.71636066,2958.5,2957.8,10.40740877]
[1720389019102,2.26989193,2958.4,2957.8,10.40740877]
[1720389019304,1.17174109,2958.3,2957.8,10.40740877]
[1720389019527,2.2698289,2958.3,2957.8,10.40740877]
[1720389019846,1.17174109,2958.2,2957.8,10.40740877]
[1720389020142,1.17174109,2958.1,2957.8,10.40740877]
[1720389020338,1.17174109,2958.3,2957.8,10.40740877]
[1720389020552,1.17174109,2958.2,2957.8,7.0094]
[1720389020705,1.17174109,2958.3,2957.8,7.0094]
[1720389021833,3.35969895,2958.6,2957.8,7.0094]
[1720389021834,1.30006616,2958.6,2957.8,7.0094]
[1720389022023,1.17182834,2958.2,2957.8,7.0094]
[1720389022347,1.17182834,2958.1,2957.8,10.40740877]
[1720389022643,1.17182834,2958.0,2957.8,10.40740877]
[1720389022950,1.17182834,2957.9,2957.8,10.40740877]
[1720389024151,1.17177232,2957.9,2957.8,10.40740877]
[1720389025152,0.33806616,2958.6,2957.8,10.40740877]
[1720389025307,2.88922894,2958.5,2957.8,7.0094]
[1720389025503,2.27045222,2958.4,2957.8,7.0094]
[1720389025717,1.17172588,2958.3,2957.8,7.0094]
[1720389025963,1.17172588,2958.2,2957.9,3.39800877]
[1720389026248,1.17172588,2958.1,2957.9,3.39800877]
[1720389026450,1.17172588,2958.0,2957.9,3.39800877]
[1720389026803,1.17172608,2958.0,2957.9,3.39800877]
[1720389028643,1.17170301,2958.0,2957.9,3.39800877]
[1720389031780,1.17171863,2958.0,2957.9,3.39800877]
[1720389032959,1.17171863,2958.0,2957.9,10.44580877]
[1720389033364,1.52592615,2958.0,2957.9,10.44580877]
[1720389034735,1.52592615,2958.0,2957.9,11.40780877]
[1720389034934,0.35420752,2958.0,2957.9,11.40780877]
[1720389035138,1.52590655,2958.0,2957.9,11.40780877]
[1720389035602,1.45287229,2958.0,2957.9,11.40780877]
[1720389035800,2.62454638,2958.0,2957.9,11.40780877]
[1720389036483,4.34768571,2958.0,2957.9,11.40780877]
[1720389038393,4.34841503,2958.0,2957.9,11.40780877]
[1720389039200,2.62453965,2958.0,2957.9,11.40780877]
[1720389039399,3.0,2958.6,2958.0,6.9937]
[1720389039400,1.72387538,2958.3,2958.0,6.9937]
[1720389039610,2.85085891,2959.2,2958.1,8.67907088]
[1720389039611,1.09875273,2958.2,2958.1,8.67907088]
[1720389039807,1.09873494,2958.3,2958.1,9.64107088]
[1720389039964,1.09873494,2958.2,2958.1,8.67907088]
[1720389040280,1.72387538,2958.5,2958.1,9.64107088]
[1720389040482,2.27010812,2958.4,2958.2,1.03170864]
[1720389040704,1.0986336,2958.3,2958.2,0.96410709]
[1720389040908,1.72387538,2958.6,2958.3,0.962]
[1720389041062,2.27055966,2958.5,2958.4,7.2409]
[1720389041372,2.27055966,2958.5,2958.4,8.2029]
[1720389041701,1.09908901,2958.5,2958.4,9.11960071]
[1720389042066,1.09908901,2958.6,2958.4,9.11960071]
[1720389042261,1.09908901,2958.5,2958.4,9.11960071]
[1720389042483,0.35414792,2958.7,2958.4,9.11960071]
[1720389042682,1.45350915,2958.7,2958.4,9.11960071]
[1720389042896,1.45350915,2958.7,2958.5,0.91196007]
[1720389044274,1.45350915,2958.7,2958.6,8.588]
[1720389044616,0.35414792,2958.7,2958.6,8.588]
[1720389044915,1.72284862,2959.3,2958.6,8.588]
[1720389044916,1.09981037,2959.2,2958.6,8.588]
[1720389045069,1.09981037,2959.2,2959.0,0.962]
[1720389045391,2.07593811,2959.4,2959.0,0.962]
[1720389045392,2.07593811,2959.4,2959.1,7.076]
[1720389045705,2.2712136,2959.3,2959.1,7.076]
[1720389045884,0.35409898,2959.4,2959.1,7.076]
[1720389046205,1.45415008,2959.4,2959.1,7.076]
[1720389046436,0.35409898,2959.4,2959.1,7.076]
[1720389046711,1.45420328,2959.4,2959.1,7.076]
[1720389047212,0.35409898,2959.4,2959.2,1.7658]
[1720389047680,0.35409898,2959.4,2959.3,6.8905]
[1720389048072,3.0,2960.0,2959.3,7.4405]
[1720389048073,1.71955977,2960.0,2959.3,7.4405]
[1720389048272,9.73688369,2960.6,2959.3,7.4405]
[1720389048273,0.35403795,2959.9,2959.6,0.962]
[1720389048498,0.35403795,2959.9,2959.7,6.8905]
[1720389048697,0.35403795,2959.9,2959.8,0.962]
[1720389048881,0.35403795,2959.9,2959.8,1.512]
[1720389049282,1.71838116,2960.6,2959.8,8.47006241]
[1720389049514,0.35399125,2960.5,2960.2,0.962]
[1720389050106,0.35399125,2960.5,2960.3,6.8905]
[1720389051902,0.35399125,2960.5,2960.4,0.962]
[1720389052478,0.35399125,2960.5,2960.4,2.29725]
[1720389053985,0.44,2961.0,2960.5,7.4941]
[1720389054338,0.44,2961.0,2960.9,0.962]
[1720389055185,0.44,2961.0,2960.9,1.512]
[1720389055398,0.35390193,2961.6,2961.0,6.9065]
[1720389055597,0.1087347,2961.7,2961.5,0.962]
[1720389055833,0.1087347,2961.7,2961.6,6.9065]
[1720389056419,0.1087347,2961.7,2961.6,7.52313201]
[1720389056615,0.1087347,2961.7,2961.6,9.82113201]
[1720389060826,0.35376874,2962.7,2961.6,9.82113201]
[1720389061026,0.35376874,2962.7,2961.7,1.5321132]
[1720389061225,0.35376874,2962.7,2961.8,0.06662764]
[1720389061467,0.35376874,2962.7,2961.9,0.55]
[1720389061667,0.35376874,2962.7,2962.0,0.06662314]
[1720389061851,0.35376874,2962.7,2962.1,0.55]
[1720389062162,0.35376874,2962.7,2961.9,0.55]
[1720389062357,0.35376874,2962.7,2961.8,0.55]
[1720389064655,0.35376874,2962.7,2961.9,0.38301132]
[1720389064840,0.35376874,2962.7,2962.0,0.55]
[1720389065438,0.35376874,2962.7,2962.1,7.3264]
[1720389065758,0.35376874,2962.7,2962.2,0.55]
[1720389067669,0.35376874,2962.7,2962.0,0.55]
[1720389074159,0.35376874,2962.7,2961.8,0.55]
[1720389074469,0.35376874,2962.7,2961.1,0.84185]
[1720389074470,7.0284,2962.6,2961.1,0.84185]
[1720389074670,7.0284,2962.6,2961.0,6.9564]
[1720389074671,7.0284,2962.4,2961.0,6.9564]
[1720389075038,3.0,2962.3,2961.0,6.9564]
[1720389075391,7.1824,2962.2,2961.0,6.9564]
[1720389075563,3.0,2962.1,2961.0,6.9564]
[1720389076354,3.0,2962.1,2961.1,0.55]
[1720389076555,3.0,2962.1,2961.2,0.75064]
[1720389076770,3.0,2962.1,2961.3,0.55]
[1720389079368,3.0,2962.1,2960.8,2.298]
[1720389079697,3.0,2962.1,2960.9,0.55]
[1720389080097,7.062,2962.0,2960.9,0.55]
[1720389080304,1.0062,2961.9,2960.9,1.5276]
[1720389090931,1.0062,2961.9,2961.3,0.958]
[1720389093411,1.17047664,2961.8,2961.3,0.958]
[1720389093616,1.0062,2961.9,2961.3,0.958]
[1720389093795,1.17047692,2961.8,2961.3,0.958]
[1720389093997,1.0062,2961.9,2961.3,0.958]
[1720389094197,1.17047317,2961.8,2961.3,0.958]
[1720389094439,1.0062,2961.9,2961.3,0.958]
[1720389094589,7.062,2962.0,2961.3,0.958]
[1720389094932,7.062,2962.0,2961.5,0.958]
[1720389096242,1.17035971,2961.9,2961.5,0.958]
[1720389096425,7.062,2962.0,2961.5,0.958]
[1720389096745,1.17036061,2961.9,2961.5,0.958]
[1720389096910,7.062,2962.0,2961.5,0.958]
[1720389097250,1.17036313,2961.9,2961.5,0.958]
[1720389097450,1.17036313,2961.8,2961.5,0.958]
[1720389097619,1.17036313,2961.9,2961.5,0.958]
[1720389097825,7.42100855,2962.3,2961.5,0.958]
[1720389098024,1.17028263,2962.2,2961.6,0.85869]
[1720389098243,1.17028263,2962.1,2961.6,0.85869]
[1720389098561,1.17028263,2962.2,2961.6,0.85869]
[1720389098852,1.17028263,2962.1,2961.5,0.958]
[1720389099008,1.17028263,2962.2,2961.5,0.958]
[1720389099208,7.42100855,2962.3,2961.5,0.958]
[1720389099410,1.17029393,2962.1,2961.5,0.958]
[1720389099610,1.17029393,2962.0,2961.5,0.958]
[1720389099843,1.17029393,2962.2,2961.5,0.958]
[1720389100022,1.17029393,2962.1,2961.5,0.958]
[1720389100226,1.17029393,2962.2,2961.5,0.958]
[1720389102461,7.42100855,2962.3,2961.5,0.958]
[1720389102750,1.17032551,2962.2,2961.5,0.958]
[1720389102922,9.88307862,2962.3,2961.6,7.2807]
[1720389102923,1.17031872,2962.1,2961.6,7.2807]
[1720389103125,1.17031872,2962.0,2961.6,7.2807]
[1720389103447,1.17031872,2961.9,2961.6,7.2807]
[1720389103623,1.17031872,2961.8,2961.6,7.2807]
[1720389103953,1.17031872,2961.7,2961.6,7.2807]
[1720389104448,1.17031255,2961.7,2961.6,7.2807]
[1720389105515,1.17031255,2961.7,2961.6,8.15957]
[1720389105816,1.72040845,2962.2,2961.6,8.15957]
[1720389106020,1.17028805,2961.7,2961.6,7.2807]
[1720389106326,2.8906965,2962.2,2961.6,7.2807]
[1720389106529,1.17028805,2962.1,2961.6,7.2807]
[1720389106869,1.17028805,2962.0,2961.6,7.2807]